fUSD/lending_fUSD_20250618
["ID","MTS","AMOUNT","RATE_DAILY","PERIOD"]
[366488585,1750287043892,-151.0,0.000248,7]
[366488586,1750287043903,-151.0,0.000248,7]
[366488587,1750287043913,-151.0,0.000248,7]
[366488588,1750287043924,-151.0,0.000248,7]
[366488589,1750287043934,-151.0,0.000248,7]
[366488590,1750287043944,-833.92080167,0.000248,3]
[366488591,1750287043954,-151.0,0.000248,7]
[366488592,1750287043964,-151.0,0.000248,7]
[366488593,1750287043974,-151.0,0.000248,7]
[366488594,1750287043985,-151.0,0.000248,7]
[366488595,1750287043995,-2600.0,0.000248,9]
[366488596,1750287044005,-151.0,0.000248,7]
[366488597,1750287044015,-620286.81578,0.000248,3]
[366488598,1750287044027,-151.0,0.000248,7]
[366488599,1750287044037,-171.216156,0.000248,7]
[366488600,1750287044046,-151.0,0.000248,7]
[366488601,1750287044057,-151.0,0.000248,7]
[366488602,1750287044067,-151.0,0.000248,7]
[366488603,1750287044076,-572.406527,0.000248,7]
[366488604,1750287044086,-572.406527,0.000248,7]
[366488605,1750287044096,-151.0,0.000248,7]
[366488606,1750287044108,-151.0,0.000248,7]
[366488607,1750287044118,-151.0,0.000248,7]
[366488608,1750287044128,-151.0,0.000248,7]
[366488609,1750287044137,-151.0,0.000248,7]
[366488610,1750287044147,-151.0,0.000248,7]
[366488611,1750287044157,-151.0,0.000248,7]
[366488612,1750287044167,-151.0,0.000248,7]
[366488613,1750287044176,-151.0,0.000248,7]
[366488614,1750287044186,-151.0,0.000248,7]
[366488615,1750287044196,-231.719619,0.000248,7]
[366488616,1750287044206,-150.0,0.00024808,2]
[366488617,1750287044216,-150.0,0.00024809,2]
[366488618,1750287044226,-2000.0,0.00024811,2]
[366488619,1750287044235,-2000.0,0.00024811,2]
[366488620,1750287044246,-150.0,0.00024824,2]
[366488621,1750287044255,-150.0,0.0002483,2]
[366488622,1750287044265,-150.0,0.00024843,2]
[366488623,1750287044275,-150.0,0.00024857,2]
[366488624,1750287044284,-150.0,0.00024858,2]
[366488625,1750287044294,-150.0,0.00024866,2]
[366488626,1750287044304,-150.0,0.00024884,2]
[366488627,1750287044314,-2000.0,0.00024889,2]
[366488628,1750287044324,-199.4623529,0.00024892,2]
[366488629,1750287044334,-40989.1537932,0.00024892,2]
[366488630,1750287044343,-5760.6524498,0.00024892,2]
[366488631,1750287044354,-653.3116215,0.00024892,2]
[366488632,1750287044363,-6383.472421,0.00024892,2]
[366488633,1750287044373,-377.63428792,0.00024892,2]
[366488634,1750287044383,-150.0,0.00024895,2]
[366488635,1750287044394,-200.0,0.00024896,2]
[366488636,1750287044404,-150.0,0.00024898,2]
[366488637,1750287044414,-1000.0,0.00024899,2]
[366488638,1750287044424,-300.0,0.00024899,10]
[366488639,1750287044434,-300.0,0.00024899,10]
[366488640,1750287044444,-255.0,0.000249,2]
[366488641,1750287044454,-255.0,0.000249,2]
[366488642,1750287044464,-151.0,0.000249,7]
[366488643,1750287044474,-255.0,0.000249,2]
[366488644,1750287044484,-330.0,0.000249,2]
[366488645,1750287044494,-151.0,0.000249,7]
[366488646,1750287044503,-339.16430366,0.000249,2]
[366488647,1750287044514,-151.0,0.000249,7]
[366488648,1750287044523,-255.0,0.000249,2]
[366488649,1750287044533,-200.0,0.000249,2]
[366488650,1750287044543,-153.362934,0.000249,7]
[366488651,1750287044553,-151.0,0.000249,7]
[366488652,1750287044563,-292.0,0.000249,2]
[366488653,1750287044573,-292.0,0.000249,2]
[366488654,1750287044583,-228.55981,0.000249,7]
[366488655,1750287044594,-279.551581,0.000249,7]
[366488656,1750287044604,-151.0,0.000249,7]
[366488657,1750287044614,-151.0,0.000249,7]
[366488658,1750287044623,-151.0,0.000249,7]
[366488659,1750287044633,-151.0,0.000249,7]
[366488660,1750287044642,-293.0,0.000249,2]
[366488661,1750287044652,-293.0,0.000249,2]
[366488662,1750287044662,-151.0,0.000249,7]
[366488663,1750287044672,-151.0,0.000249,7]
[366488664,1750287044681,-151.0,0.000249,7]
[366488665,1750287044691,-151.0,0.000249,2]
[366488666,1750287044702,-151.0,0.000249,7]
[366488667,1750287044711,-151.0,0.000249,7]
[366488668,1750287044722,-194.117576,0.000249,7]
[366488669,1750287044732,-151.0,0.000249,7]
[366488670,1750287044742,-151.0,0.000249,7]
[366488671,1750287044752,-234.167622,0.000249,7]
[366488672,1750287044762,-151.0,0.000249,7]
[366488673,1750287044772,-151.0,0.000249,7]
[366488674,1750287044782,-3300.0,0.000249,9]
[366488675,1750287044792,-151.000421,0.000249,7]
[366488676,1750287044802,-187337.565759,0.000249,3]
[366488677,1750287044812,-151.0,0.000249,7]
[366488678,1750287044822,-151.0,0.000249,7]
[366488679,1750287044833,-572.406527,0.000249,7]
[366488680,1750287044843,-572.406527,0.000249,7]
[366488681,1750287044853,-151.0,0.000249,7]
[366488682,1750287044863,-151.0,0.000249,7]
[366488683,1750287044873,-151.0,0.000249,7]
[366488684,1750287044883,-151.0,0.000249,7]
[366488685,1750287044893,-151.0,0.000249,7]
[366488686,1750287044903,-190.8369347,0.00024905,2]
[366488687,1750287044913,-1722.0,0.00024909,2]
[366488688,1750287044923,-585.63124727,0.00024909,2]
[366488689,1750287044934,-1000.0,0.00024917,2]
[366488690,1750287044945,-1076.08,0.00024917,2]
[366488691,1750287044956,-152.0,0.00024967,4]
[366488692,1750287044967,-300.0,0.0002497,2]
[366488693,1750287044977,-1000.0,0.00024974,2]
[366488694,1750287044987,-201.4153619,0.00025,2]
[366488695,1750287044997,-1732.11048174,0.00025,2]
[366488696,1750287045007,-200.0,0.00025,2]
[366488697,1750287045017,-2954.06716257,0.00025,2]
[366488698,1750287045028,-4027.09652114,0.00025,2]
[366488699,1750287045038,-1771.80077683,0.00025,2]
[366488700,1750287045047,-1032.96838044,0.00025,2]
[366488701,1750287045057,-162.33931714,0.00025,2]
[366488702,1750287045066,-10000.0,0.00025,2]
[366488703,1750287045077,-161.0,0.00025,3]
[366488704,1750287045087,-153.13,0.00025,3]
[366488705,1750287045096,-300.0,0.00025,2]
[366488706,1750287045108,-300.0,0.00025,2]
[366488707,1750287045119,-150.0,0.00025,2]
[366488708,1750287045130,-150.0,0.00025,2]
[366488709,1750287045140,-150.0,0.00025,2]
[366488710,1750287045150,-150.0,0.00025,2]
[366488711,1750287045160,-150.0,0.00025,2]
[366488712,1750287045170,-150.0,0.00025,2]
[366488713,1750287045179,-150.0,0.00025,2]
[366488714,1750287045189,-150.0,0.00025,2]
[366488715,1750287045199,-150.0,0.00025,2]
[366488716,1750287045209,-150.0,0.00025,2]
[366488717,1750287045219,-150.0,0.00025,2]
[366488718,1750287045229,-150.0,0.00025,2]
[366488719,1750287045238,-222.332,0.00025,2]
[366488720,1750287045248,-300.03931196,0.00025,30]
[366488721,1750287045258,-164.0,0.00025,7]
[366488722,1750287045268,-7880.11,0.00025,2]
[366488723,1750287045278,-11402.3,0.00025,2]
[366488724,1750287045288,-4000.0,0.00025,4]
[366488725,1750287045298,-8255.14811582,0.00025033,2]
[366488726,1750287045308,-150.0,0.00025041,2]
[366488727,1750287045318,-3280.3172954,0.000251,2]
[366488728,1750287045328,-453.0,0.00025131,7]
[366488729,1750287045338,-200.0,0.00025149,2]
[366488730,1750287045347,-1722.0,0.00025158,2]
[366488731,1750287045357,-300.0,0.00025198,2]
[366488732,1750287045367,-300.0,0.00025199,10]
[366488733,1750287045377,-300.0,0.00025199,10]
[366488734,1750287045387,-2000.0,0.000252,2]
[366488735,1750287045397,-151.0,0.000252,7]
[366488736,1750287045407,-151.0,0.000252,7]
[366488737,1750287045417,-151.0,0.000252,7]
[366488738,1750287045618,-151.0,0.000252,7]
[366488739,1750287045656,-162.380719,0.00025275,2]
[366488740,1750287045666,-223.0315306,0.00025275,2]
[366488741,1750287045676,-151.0,0.00025283,7]
[366488742,1750287045687,-151.0,0.00025283,7]
[366488743,1750287045696,-199.4623529,0.00025283,2]
[366488744,1750287045706,-151.0,0.00025283,7]
[366488745,1750287045718,-37020.0964273,0.00025283,2]
[366488746,1750287045728,-151.0,0.00025283,7]
[366488747,1750287045738,-151.0,0.00025283,7]
[366488748,1750287045750,-5190.7441568,0.00025283,2]
[366488749,1750287045758,-151.0,0.00025283,7]
[366488750,1750287045767,-151.0,0.00025283,7]
[366488751,1750287045775,-588.678715,0.00025283,2]
[366488752,1750287045784,-572.406527,0.00025283,7]
[366488753,1750287045793,-572.406527,0.00025283,7]
[366488754,1750287045802,-151.0,0.00025283,7]
[366488755,1750287045811,-151.0,0.00025283,7]
[366488756,1750287045820,-6217.7671709,0.00025283,2]
[366488757,1750287045831,-151.0,0.00025283,7]
[366488758,1750287045841,-151.0,0.00025288,7]
[366488759,1750287045851,-163.5,0.00025298,2]
[366488760,1750287045861,-1165.01,0.00025298,2]
[366488761,1750287045870,-1165.01,0.00025298,2]
[366488762,1750287045880,-163.5,0.00025298,2]
[366488763,1750287045890,-1165.01,0.00025298,2]
[366488764,1750287045900,-163.5,0.00025298,2]
[366488765,1750287045910,-163.5,0.00025298,2]
[366488766,1750287045920,-1165.01,0.00025298,2]
[366488767,1750287045930,-354.86,0.00025298,2]
[366488768,1750287045940,-354.86,0.00025298,2]
[366488769,1750287045950,-1165.01,0.00025298,2]
[366488771,1750287045959,-163.5,0.00025298,2]
[366488772,1750287045969,-354.77,0.00025298,2]
[366488773,1750287045979,-163.5,0.00025298,2]
[366488774,1750287045989,-1772.1,0.00025298,2]
[366488775,1750287045999,-163.5,0.00025298,2]
[366488776,1750287046009,-163.5,0.00025298,2]
[366488777,1750287046019,-163.32,0.00025298,2]
[366488778,1750287046033,-300.0,0.00025299,10]
[366488779,1750287046043,-300.0,0.00025299,10]
[366488780,1750287046053,-164888.8868,0.000253,2]
[366488781,1750287046063,-315567.12,0.000253,7]
[366488782,1750287046073,-151.0,0.000253,7]
[366488783,1750287046084,-151.0,0.000253,7]
[366488784,1750287046093,-151.0,0.000253,7]
[366488785,1750287046105,-151.0,0.000253,7]
[366488786,1750287046115,-278.061212,0.000253,7]
[366488787,1750287046125,-151.0,0.000253,7]
[366488788,1750287046135,-151.0,0.000253,7]
[366488789,1750287046145,-151.0,0.000253,7]
[366488790,1750287046154,-175.475534,0.000253,7]
[366488791,1750287046165,-572.406527,0.000253,7]
[366488792,1750287046175,-572.406527,0.000253,7]
[366488793,1750287046184,-151.0,0.000253,7]
[366488794,1750287046194,-151.0,0.000253,7]
[366488795,1750287046204,-151.0,0.000253,7]
[366488796,1750287046215,-280.0,0.000253,10]
[366488797,1750287046224,-453.0,0.00025315,7]
[366488798,1750287046234,-1000.0,0.00025321,2]
[366488799,1750287046244,-2500.0,0.00025358,2]
[366488800,1750287046254,-1256.94665885,0.00025358,2]
[366488801,1750287046264,-202.0,0.0002536,11]
[366488802,1750287046274,-457.0,0.00025373,7]
[366488803,1750287046284,-465.0,0.00025373,7]
[366488804,1750287046294,-2900.20326162,0.000254,2]
[366488805,1750287046304,-200.0,0.000254,2]
[366488806,1750287046314,-1722.0,0.00025407,2]
[366488807,1750287046324,-698.49469709,0.00025437,2]
[366488808,1750287046335,-201.86242174,0.0002552,2]
[366488809,1750287046345,-276.26198042,0.0002552,2]
[366488810,1750287046355,-168.0,0.0002554,2]
[366488811,1750287046365,-150.0,0.00025631,2]
[366488812,1750287046375,-168.0,0.00025645,2]
[366488813,1750287046385,-200.0,0.00025654,2]
[366488814,1750287046394,-1722.0,0.00025656,2]
[366488815,1750287046405,-152.0,0.00025765,5]
[366488816,1750287046414,-18548.28,0.00025786,2]
[366488817,1750287046424,-168.0,0.00025788,2]
[366488818,1750287046435,-8255.14811582,0.00025889,2]
[366488819,1750287046445,-164.0,0.0002589,7]
[366488820,1750287046455,-2835.43448392,0.000259,2]
[366488821,1750287046465,-3000.0,0.00025906,2]
[366488822,1750287046475,-200.0,0.00025911,2]
[366488823,1750287046484,-582.39846396,0.0002599,2]
[366488824,1750287046494,-4388.31017684,0.00026,2]
[366488825,1750287046504,-1424.3951281,0.00026,2]
[366488826,1750287046513,-309.65475065,0.00026,2]
[366488827,1750287046523,-1546.13009548,0.00026,2]
[366488829,1750287046533,-300.0,0.00026,2]
[366488831,1750287046543,-4000.0,0.00026,4]
[366488833,1750287046553,-594.58,0.00026034,2]
[366488835,1750287046563,-610.13,0.0002608,2]
[366488837,1750287046573,-199.4623529,0.00026082,2]
[366488839,1750287046583,-33051.0390613,0.00026082,2]
[366488841,1750287046592,-4620.8358639,0.00026082,2]
[366488843,1750287046603,-524.0458086,0.00026082,2]
[366488845,1750287046612,-6052.0619209,0.00026082,2]
[366488847,1750287046622,-453.0,0.00026098,7]
[366488849,1750287046632,-300.0,0.00026099,10]
[366488851,1750287046642,-179.68966691,0.00026099,10]
[366488853,1750287046652,-315567.12,0.000261,7]
[366488855,1750287046662,-5701.15,0.000261,2]
[366488857,1750287046672,-151.0,0.000261,7]
[366488859,1750287046682,-151.0,0.000261,7]
[366488861,1750287046692,-151.0,0.000261,7]
[366488863,1750287046702,-572.406527,0.000261,7]
[366488865,1750287046711,-572.406527,0.000261,7]
[366488867,1750287046721,-185.747963,0.000261,7]
[366488869,1750287046731,-602.35,0.00026134,2]
[366488871,1750287046741,-1333.0,0.00026137,120]
[366488873,1750287046751,-455.32,0.00026208,2]
[366488875,1750287046762,-170.87,0.00026208,2]
[366488877,1750287046772,-179.34,0.00026208,2]
[366488879,1750287046782,-150.0,0.00026221,2]
[366488881,1750287046792,-607.64,0.00026231,2]
[366488883,1750287046802,-598.89,0.00026232,2]
[366488885,1750287046812,-605.73,0.00026368,2]
[366488887,1750287046822,-457.0,0.00026388,7]
[366488889,1750287046832,-26652.3591389,0.000264,2]
[366488892,1750287046843,-602.55,0.00026417,2]
[366488894,1750287046852,-607.88,0.00026417,2]
[366488896,1750287046863,-2147.73039598,0.00026454,2]
[366488898,1750287046872,-453.0,0.00026466,7]
[366488900,1750287046882,-46444.43706592,0.000265,2]
[366488902,1750287046892,-152.0,0.00026564,6]
[366488904,1750287046902,-457.0,0.00026581,7]
[366488905,1750287046913,-168.0,0.00026612,2]
[366488908,1750287046923,-500.0,0.0002663,7]
[366488910,1750287046933,-500.0,0.0002663,7]
[366488911,1750287046943,-500.0,0.0002663,7]
[366488913,1750287046955,-168.3888056,0.00026644,2]
[366488915,1750287046966,-231.28369723,0.00026644,2]
[366488916,1750287046975,-197.99,0.00026676,2]
[366488917,1750287046985,-8255.14811582,0.00026744,2]
[366488918,1750287046995,-554.03225337,0.000268,5]
[366488919,1750287047005,-4743.2967232,0.000268,2]
[366488920,1750287047014,-15357.08808106,0.000268,2]
[366488921,1750287047025,-10717.52803056,0.000268,2]
[366488922,1750287047036,-150.0,0.00026811,2]
[366488923,1750287047046,-517.88,0.00026819,120]
[366488924,1750287047055,-199.4623529,0.00026882,2]
[366488925,1750287047066,-29081.9816954,0.00026882,2]
[366488926,1750287047076,-4050.9275709,0.00026882,2]
[366488927,1750287047085,-459.4129021,0.00026882,2]
[366488928,1750287047096,-5886.3566708,0.00026882,2]
[366488929,1750287047107,-315567.12,0.000269,7]
[366488930,1750287047117,-151.0,0.000269,7]
[366488931,1750287047127,-151.0,0.000269,7]
[366488932,1750287047137,-2835.43448392,0.000269,2]
[366488933,1750287047146,-151.0,0.000269,7]
[366488934,1750287047156,-572.406527,0.000269,7]
[366488935,1750287047165,-572.406527,0.000269,7]
[366488936,1750287047175,-500.0,0.00026904,7]
[366488937,1750287047184,-500.0,0.00026904,7]
[366488938,1750287047193,-168.0,0.00026906,2]
[366488939,1750287047203,-4000.0,0.00027,4]
[366488940,1750287047212,-250.0,0.00027,2]
[366488941,1750287047221,-8897.59021934,0.00027,10]
[366488942,1750287047231,-1004.18706179,0.00027,2]
[366488943,1750287047241,-10410.45727216,0.00027,2]
[366488944,1750287047251,-3500.0,0.00027,2]
[366488945,1750287047261,-300.0,0.00027,2]
[366488946,1750287047270,-2110.0,0.00027,2]
[366488947,1750287047279,-2000.0,0.00027,2]
[366488948,1750287047288,-500.0,0.00027,120]
[366488949,1750287047298,-833.92080167,0.00027,10]
[366488950,1750287047307,-400.0,0.00027,2]
[366488951,1750287047316,-202.0,0.00027009,13]
[366488952,1750287047326,-2091.575533,0.0002701,2]
[366488953,1750287047336,-168.0,0.00027016,2]
[366488954,1750287047345,-453.0,0.00027064,7]
[366488955,1750287047354,-150.72,0.00027097,2]
[366488956,1750287047364,-150.83,0.00027097,2]
[366488957,1750287047374,-151.76,0.00027097,2]
[366488958,1750287047388,-3573.55,0.00027123,2]
[366488959,1750287047398,-500.0,0.00027178,7]
[366488960,1750287047408,-500.0,0.00027178,7]
[366488961,1750287047418,-1076.08,0.00027181,2]
[366488962,1750287047428,-1000.0,0.00027182,2]
[366488963,1750287047438,-164.0,0.00027185,7]
[366488964,1750287047448,-153.0,0.00027276,2]
[366488965,1750287047458,-400.0,0.00027323,13]
[366488966,1750287047468,-400.0,0.00027323,13]
[366488967,1750287047478,-400.0,0.00027323,13]
[366488968,1750287047488,-400.0,0.00027323,13]
[366488969,1750287047498,-400.0,0.00027323,13]
[366488970,1750287047508,-400.0,0.00027323,13]
[366488971,1750287047517,-400.0,0.00027323,13]
[366488972,1750287047528,-400.0,0.00027323,13]
[366488973,1750287047539,-400.0,0.00027323,13]
[366488974,1750287047549,-400.0,0.00027323,13]
[366488975,1750287047559,-400.0,0.00027323,13]
[366488976,1750287047568,-400.0,0.00027323,13]
[366488977,1750287047579,-400.0,0.00027323,13]
[366488978,1750287047589,-400.0,0.00027323,13]
[366488979,1750287047599,-400.0,0.00027323,13]
[366488980,1750287047610,-400.0,0.00027323,13]
[366488981,1750287047621,-400.0,0.00027323,13]
[366488982,1750287047631,-400.0,0.00027323,13]
[366488983,1750287047641,-400.0,0.00027323,13]
[366488984,1750287047654,-400.0,0.00027323,13]
[366488985,1750287047664,-400.0,0.00027323,13]
[366488986,1750287047674,-400.0,0.00027323,13]
[366488987,1750287047683,-400.0,0.00027323,13]
[366488988,1750287047694,-400.0,0.00027323,13]
[366488989,1750287047704,-400.0,0.00027323,13]
[366488990,1750287047714,-400.0,0.00027323,13]
[366488991,1750287047725,-400.0,0.00027323,13]
[366488992,1750287047735,-400.0,0.00027323,13]
[366488993,1750287047745,-400.0,0.00027323,13]
[366488994,1750287047755,-400.0,0.00027323,13]
[366488995,1750287047765,-400.0,0.00027323,13]
[366488996,1750287047775,-400.0,0.00027323,13]
[366488997,1750287047785,-200.0,0.00027323,2]
[366488998,1750287047797,-200.0,0.00027323,2]
[366488999,1750287047809,-200.0,0.00027323,2]
[366489000,1750287047820,-200.0,0.00027323,2]
[366489001,1750287047830,-200.0,0.00027323,2]
[366489002,1750287047840,-200.0,0.00027323,2]
[366489003,1750287047850,-200.0,0.00027323,2]
[366489004,1750287047861,-200.0,0.00027323,2]
[366489005,1750287047870,-200.0,0.00027323,2]
[366489006,1750287047880,-200.0,0.00027323,2]
[366489007,1750287047890,-200.0,0.00027323,2]
[366489008,1750287047900,-200.0,0.00027323,2]
[366489009,1750287047910,-200.0,0.00027323,2]
[366489010,1750287047921,-200.0,0.00027323,2]
[366489011,1750287047930,-200.0,0.00027323,2]
[366489012,1750287047941,-200.0,0.00027323,2]
[366489013,1750287047951,-200.0,0.00027323,2]
[366489014,1750287047961,-200.0,0.00027323,2]
[366489015,1750287047970,-400.0,0.00027323,13]
[366489016,1750287047980,-200.0,0.00027323,2]
[366489017,1750287047990,-400.0,0.00027323,13]
[366489018,1750287048000,-400.0,0.00027323,13]
[366489019,1750287048010,-200.0,0.00027323,2]
[366489020,1750287048022,-200.0,0.00027323,2]
[366489021,1750287048037,-200.0,0.00027323,2]
[366489022,1750287048047,-200.0,0.00027323,2]
[366489023,1750287048062,-200.0,0.00027323,2]
[366489024,1750287048075,-453.0,0.00027323,13]
[366489025,1750287048086,-200.0,0.00027323,2]
[366489026,1750287048096,-200.0,0.00027323,2]
[366489027,1750287048105,-200.0,0.00027323,2]
[366489028,1750287048116,-200.0,0.00027323,2]
[366489029,1750287048126,-154.0,0.00027323,2]
[366489030,1750287048135,-152.0,0.00027362,7]
[366489031,1750287048145,-284.41,0.0002737,2]
[366489032,1750287048155,-150.0,0.00027387,2]
[366489033,1750287048165,-4008.89185156,0.0002739,2]
[366489034,1750287048175,-5430.10062082,0.0002739,10]
[366489035,1750287048185,-4236.42201046,0.0002739,7]
[366489036,1750287048194,-3478.72016299,0.0002739,2]
[366489037,1750287048205,-276.26198042,0.00027393,2]
[366489038,1750287048215,-500.0,0.00027397,2]
[366489039,1750287048226,-471.099345,0.00027397,7]
[366489040,1750287048236,-471.099345,0.00027397,7]
[366489041,1750287048247,-471.099345,0.00027397,7]
[366489042,1750287048258,-471.099345,0.00027397,7]
[366489043,1750287048268,-471.099345,0.00027397,7]
[366489044,1750287048279,-471.099345,0.00027397,7]
[366489045,1750287048289,-471.099345,0.00027397,7]
[366489046,1750287048299,-471.099345,0.00027397,7]
[366489047,1750287048309,-471.099345,0.00027397,7]
[366489048,1750287048319,-471.099345,0.00027397,7]
[366489049,1750287048336,-471.099345,0.00027397,7]
[366489050,1750287048346,-471.099345,0.00027397,7]
[366489051,1750287048356,-471.099345,0.00027397,7]
[366489052,1750287048369,-471.099345,0.00027397,7]
[366489053,1750287048380,-700.0,0.00027397,2]
[366489054,1750287048390,-300.0,0.00027397,2]
[366489055,1750287048400,-502.65,0.00027397,2]
[366489056,1750287048410,-159.91966563,0.00027397,5]
[366489057,1750287048420,-153.48668145,0.00027397,5]
[366489058,1750287048431,-154.3814411,0.00027397,5]
[366489059,1750287048441,-160.10578684,0.00027397,5]
[366489060,1750287048451,-159.87518522,0.00027397,5]
[366489061,1750287048461,-1200.0,0.000274,2]
[366489062,1750287048482,-650.0,0.000274,2]
[366489063,1750287048494,-500.0,0.000274,2]
[366489064,1750287048504,-150.0,0.00027401,2]
[366489065,1750287048514,-457.0,0.00027402,14]
[366489066,1750287048524,-500.0,0.00027424,2]
[366489067,1750287048534,-500.0,0.00027452,2]
[366489068,1750287048545,-500.0,0.00027452,15]
[366489069,1750287048554,-500.0,0.00027452,15]
[366489070,1750287048565,-500.0,0.00027479,2]
[366489071,1750287048575,-194.95685169,0.000275,2]
[366489072,1750287048586,-532.49328757,0.000275,2]
[366489073,1750287048596,-2110.0,0.000275,2]
[366489074,1750287048606,-2500.0,0.000275,2]
[366489075,1750287048616,-152.03,0.000275,2]
[366489076,1750287048627,-500.0,0.00027507,2]
[366489077,1750287048637,-500.0,0.00027534,2]
[366489078,1750287048648,-500.0,0.00027561,2]
[366489079,1750287048658,-500.0,0.00027589,2]
[366489080,1750287048668,-8255.14811582,0.000276,2]
[366489081,1750287048678,-216.58298858,0.00027616,2]
[366489082,1750287048688,-453.0,0.00027616,14]
[366489083,1750287048698,-325.09907448,0.00027616,2]
[366489084,1750287048708,-150.0,0.00027644,2]
[366489085,1750287048717,-150.0,0.00027644,2]
[366489086,1750287048727,-354.86,0.00027644,2]
[366489087,1750287048738,-354.86,0.00027644,2]
[366489088,1750287048748,-354.86,0.00027644,2]
[366489089,1750287048759,-354.86,0.00027644,2]
[366489090,1750287048769,-354.86,0.00027644,2]
[366489091,1750287048781,-199.4623529,0.00027681,2]
[366489092,1750287048792,-25112.9243294,0.00027681,2]
[366489093,1750287048803,-3481.019278,0.00027681,2]
[366489094,1750287048815,-394.7799956,0.00027681,2]
[366489095,1750287048826,-5720.6514208,0.00027681,2]
[366489096,1750287048837,-5023.23345187,0.000277,2]
[366489097,1750287048848,-315567.12,0.000277,7]
[366489098,1750287048858,-5701.15,0.000277,2]
[366489099,1750287048868,-151.0,0.000277,7]
[366489100,1750287048878,-151.0,0.000277,7]
[366489101,1750287048889,-572.406527,0.000277,7]
[366489102,1750287048901,-572.406527,0.000277,7]
[366489103,1750287048915,-610.06,0.00027712,2]
[366489104,1750287048927,-989.11,0.00027712,2]
[366489105,1750287048937,-990.68,0.00027712,2]
[366489106,1750287048947,-608.86,0.00027712,2]
[366489107,1750287048958,-1009.51,0.00027713,2]
[366489108,1750287048969,-599.09,0.00027713,2]
[366489109,1750287048979,-1012.3,0.00027713,2]
[366489110,1750287048991,-1007.14,0.00027713,2]
[366489111,1750287049002,-601.65,0.00027713,2]
[366489112,1750287049013,-992.42,0.00027713,2]
[366489113,1750287049025,-1005.13,0.00027713,2]
[366489114,1750287049038,-604.42,0.00027713,2]
[366489115,1750287049048,-1000.37,0.00027713,2]
[366489116,1750287049059,-1007.38,0.00027713,2]
[366489117,1750287049070,-602.69,0.00027713,2]
[366489118,1750287049080,-1008.3,0.00027713,2]
[366489119,1750287049096,-590.08,0.00027713,2]
[366489120,1750287049113,-1018.89,0.00027713,2]
[366489121,1750287049132,-1017.34,0.00027713,2]
[366489122,1750287049148,-593.27,0.00027713,2]
[366489123,1750287049161,-987.78,0.00027713,2]
[366489124,1750287049174,-1015.04,0.00027713,2]
[366489125,1750287049188,-1007.79,0.00027713,2]
[366489126,1750287049204,-1006.08,0.00027713,2]
[366489127,1750287049217,-1016.02,0.00027714,2]
[366489128,1750287049231,-983.95,0.00027714,2]
[366489129,1750287049246,-605.76,0.00027714,2]